fUST/lending_fUST_20250324
["ID","MTS","AMOUNT","RATE_DAILY","PERIOD"]
[356598653,1742767845733,-2938.51,0.00013972,2]
[356598655,1742767845742,-529.6,0.00013972,2]
[356598656,1742767845752,-380.47015421,0.00013972,2]
[356598657,1742767845762,-500.0,0.00013972,2]
[356598658,1742767845771,-500.0,0.00013972,2]
[356598659,1742767845781,-626.22,0.00013972,2]
[356598660,1742767845791,-746.06,0.00013972,2]
[356598661,1742767845800,-446.74263306,0.00013972,2]
[356598662,1742767845810,-869.25,0.00013972,2]
[356598663,1742767845819,-500.0,0.00013972,2]
[356598664,1742767845829,-500.0,0.00013972,2]
[356598665,1742767845839,-500.0,0.00013972,2]
[356598666,1742767845849,-500.0,0.00013972,2]
[356598667,1742767845858,-500.0,0.00013972,2]
[356598668,1742767845868,-500.0,0.00013972,2]
[356598669,1742767845878,-1187.84,0.00013972,2]
[356598670,1742767845887,-500.0,0.00013972,2]
[356598671,1742767845897,-1031.16,0.00013972,2]
[356598672,1742767845907,-590.6,0.00013972,2]
[356598673,1742767845917,-1508.01,0.00013972,2]
[356598674,1742767845926,-500.0,0.00013972,2]
[356598675,1742767845936,-250.703567,0.00013972,2]
[356598676,1742767845946,-1102.81,0.00013972,2]
[356598677,1742767845956,-500.0,0.00013972,2]
[356598678,1742767845968,-12880.19,0.00013972,2]
[356598679,1742767845978,-205.32178508,0.00013972,2]
[356598680,1742767845987,-3320.68,0.00013972,2]
[356598681,1742767845997,-1858.37,0.00013972,2]
[356598682,1742767846007,-500.0,0.00013972,2]
[356598683,1742767846018,-1472.43,0.00013972,2]
[356598684,1742767846027,-750.09,0.00013972,2]
[356598685,1742767846037,-500.0,0.00013972,2]
[356598686,1742767846048,-3920.8,0.00013972,2]
[356598687,1742767846058,-500.0,0.00013972,2]
[356598688,1742767846068,-500.0,0.00013972,2]
[356598689,1742767846077,-4856.34,0.00013972,2]
[356598690,1742767846086,-500.0,0.00013973,2]
[356598691,1742767846096,-311.4557644,0.00013973,2]
[356598692,1742767846105,-326.79215791,0.00013973,2]
[356598693,1742767846115,-500.0,0.00013973,2]
[356598694,1742767846124,-290.86326362,0.00013973,2]
[356598695,1742767846133,-500.0,0.00013973,2]
[356598696,1742767846143,-500.0,0.00013973,2]
[356598697,1742767846152,-500.0,0.00013973,2]
[356598698,1742767846162,-500.0,0.00013973,2]
[356598699,1742767846171,-500.0,0.00013973,2]
[356598700,1742767846181,-160.801771,0.00014,3]
[356598701,1742767846190,-2200.0,0.00014057,2]
[356598702,1742767846199,-300.0,0.000142,5]
[356598703,1742767846209,-600.0,0.00014202,2]
[356598704,1742767846219,-151.0,0.00014245,2]
[356598705,1742767846229,-500.0,0.00014246,2]
[356598706,1742767846238,-500.0,0.00014246,2]
[356598707,1742767846248,-500.0,0.00014246,2]
[356598708,1742767846257,-176.55337285,0.00014246,2]
[356598709,1742767846266,-500.0,0.00014246,2]
[356598710,1742767846275,-500.0,0.00014246,2]
[356598711,1742767846285,-500.0,0.00014246,2]
[356598712,1742767846294,-500.0,0.00014246,2]
[356598713,1742767846304,-500.0,0.00014246,2]
[356598714,1742767846315,-500.0,0.00014246,2]
[356598715,1742767846324,-500.0,0.00014246,2]
[356598716,1742767846333,-500.0,0.00014246,2]
[356598717,1742767846342,-500.0,0.00014246,2]
[356598718,1742767846351,-757.56,0.00014246,2]
[356598719,1742767846361,-500.0,0.00014246,2]
[356598720,1742767846371,-921.1,0.00014246,2]
[356598721,1742767846380,-500.0,0.00014246,2]
[356598722,1742767846390,-2345.38,0.00014246,2]
[356598723,1742767846399,-500.0,0.00014246,2]
[356598724,1742767846408,-500.0,0.00014246,2]
[356598725,1742767846418,-1182.93,0.00014246,2]
[356598726,1742767846427,-500.0,0.00014246,2]
[356598727,1742767846436,-500.0,0.00014246,2]
[356598728,1742767846445,-500.0,0.00014246,2]
[356598729,1742767846454,-500.0,0.00014246,2]
[356598730,1742767846463,-500.0,0.00014246,2]
[356598731,1742767846473,-580.56,0.00014246,2]
[356598732,1742767846483,-500.0,0.00014246,2]
[356598733,1742767846492,-500.0,0.00014246,2]
[356598734,1742767846502,-500.0,0.00014246,2]
[356598735,1742767846511,-500.0,0.00014246,2]
[356598736,1742767846520,-500.0,0.00014246,2]
[356598737,1742767846529,-500.0,0.00014246,2]
[356598738,1742767846538,-500.0,0.00014246,2]
[356598739,1742767846548,-500.0,0.00014246,2]
[356598740,1742767846557,-500.0,0.00014246,2]
[356598741,1742767846566,-500.0,0.00014246,2]
[356598742,1742767846575,-500.0,0.00014246,2]
[356598743,1742767846584,-500.0,0.00014246,2]
[356598744,1742767846594,-500.0,0.00014246,2]
[356598745,1742767846603,-500.0,0.00014246,2]
[356598746,1742767846616,-500.0,0.00014246,2]
[356598747,1742767846629,-500.0,0.00014246,2]
[356598748,1742767846641,-554.34,0.00014246,2]
[356598749,1742767846653,-583.47,0.00014246,2]
[356598750,1742767846665,-500.0,0.00014246,2]
[356598751,1742767846676,-500.0,0.00014246,2]
[356598752,1742767846686,-258.72557184,0.00014246,2]
[356598753,1742767846696,-500.0,0.00014246,2]
[356598754,1742767846709,-500.0,0.00014246,2]
[356598755,1742767846720,-500.0,0.00014246,2]
[356598756,1742767846732,-500.0,0.00014246,2]
[356598757,1742767846744,-500.0,0.00014246,2]
[356598758,1742767846755,-2653.41,0.00014246,2]
[356598759,1742767846767,-8198.7,0.00014246,2]
[356598760,1742767846779,-1006.41,0.00014246,2]
[356598761,1742767846791,-2940.71,0.00014246,2]
[356598762,1742767846803,-500.0,0.00014246,2]
[356598763,1742767846816,-500.0,0.00014246,2]
[356598764,1742767846827,-500.0,0.00014246,2]
[356598765,1742767846840,-1183.27,0.00014246,2]
[356598766,1742767846851,-500.0,0.00014246,2]
[356598767,1742767846863,-500.0,0.00014246,2]
[356598768,1742767846873,-1109.55,0.00014246,2]
[356598769,1742767846885,-500.0,0.00014246,2]
[356598770,1742767846898,-10679.73,0.00014246,2]
[356598771,1742767846908,-500.0,0.00014246,2]
[356598772,1742767846919,-500.0,0.00014246,2]
[356598773,1742767846932,-616.77,0.00014246,2]
[356598774,1742767846944,-500.0,0.00014246,2]
[356598775,1742767846956,-106104.61,0.00014246,2]
[356598776,1742767846967,-500.0,0.00014246,2]
[356598777,1742767846979,-897.9,0.00014246,2]
[356598778,1742767846993,-500.0,0.00014246,2]
[356598779,1742767847003,-500.0,0.00014246,2]
[356598780,1742767847014,-4137.09,0.00014246,2]
[356598781,1742767847025,-500.0,0.00014246,2]
[356598782,1742767847036,-500.0,0.00014246,2]
[356598783,1742767847047,-500.0,0.00014246,2]
[356598784,1742767847059,-500.0,0.00014246,2]
[356598785,1742767847070,-1096.35,0.00014246,2]
[356598786,1742767847082,-2197.73,0.00014246,2]
[356598787,1742767847094,-773.45,0.00014246,2]
[356598788,1742767847104,-500.0,0.00014246,2]
[356598789,1742767847116,-500.0,0.00014246,2]
[356598790,1742767847128,-500.0,0.00014246,2]
[356598791,1742767847140,-500.0,0.00014246,2]
[356598792,1742767847152,-1351.32,0.00014246,2]
[356598793,1742767847164,-500.0,0.00014246,2]
[356598794,1742767847177,-500.0,0.00014246,2]
[356598795,1742767847187,-500.0,0.00014246,2]
[356598796,1742767847198,-500.0,0.00014246,2]
[356598797,1742767847209,-500.0,0.00014246,2]
[356598798,1742767847218,-7007.55,0.00014246,2]
[356598799,1742767847228,-500.0,0.00014246,2]
[356598800,1742767847240,-500.0,0.00014246,2]
[356598801,1742767847251,-532.4,0.00014246,2]
[356598802,1742767847262,-674.73,0.00014246,2]
[356598803,1742767847275,-4418.81,0.00014246,2]
[356598804,1742767847286,-500.0,0.00014246,2]
[356598805,1742767847298,-980.7,0.00014246,2]
[356598806,1742767847308,-500.0,0.00014246,2]
[356598807,1742767847318,-1674.18,0.00014246,2]
[356598808,1742767847329,-706.08,0.00014246,2]
[356598809,1742767847339,-500.0,0.00014246,2]
[356598810,1742767847350,-2938.51,0.00014246,2]
[356598811,1742767847361,-529.6,0.00014246,2]
[356598812,1742767847372,-375.75494086,0.00014246,2]
[356598813,1742767847383,-451.75190734,0.00014246,2]
[356598814,1742767847394,-626.22,0.00014246,2]
[356598815,1742767847404,-746.06,0.00014246,2]
[356598816,1742767847414,-869.25,0.00014246,2]
[356598817,1742767847425,-500.0,0.00014246,2]
[356598818,1742767847436,-500.0,0.00014246,2]
[356598819,1742767847447,-500.0,0.00014246,2]
[356598820,1742767847457,-500.0,0.00014246,2]
[356598821,1742767847468,-500.0,0.00014246,2]
[356598822,1742767847479,-500.0,0.00014246,2]
[356598823,1742767847490,-1187.84,0.00014246,2]
[356598824,1742767847500,-500.0,0.00014246,2]
[356598825,1742767847511,-1031.16,0.00014246,2]
[356598826,1742767847523,-590.6,0.00014246,2]
[356598827,1742767847533,-1508.01,0.00014246,2]
[356598828,1742767847544,-500.0,0.00014246,2]
[356598829,1742767847556,-1102.81,0.00014246,2]
[356598830,1742767847567,-500.0,0.00014246,2]
[356598831,1742767847578,-12880.19,0.00014246,2]
[356598832,1742767847589,-3320.68,0.00014246,2]
[356598833,1742767847599,-1858.37,0.00014246,2]
[356598834,1742767847610,-500.0,0.00014246,2]
[356598835,1742767847620,-1472.43,0.00014246,2]
[356598836,1742767847631,-750.09,0.00014246,2]
[356598837,1742767847642,-500.0,0.00014246,2]
[356598838,1742767847653,-3920.8,0.00014246,2]
[356598839,1742767847664,-500.0,0.00014246,2]
[356598840,1742767847676,-500.0,0.00014246,2]
[356598841,1742767847687,-4856.34,0.00014246,2]
[356598842,1742767847698,-500.0,0.00014273,2]
[356598843,1742767847708,-160.0,0.00014338,2]
[356598844,1742767847719,-160.0,0.00014338,2]
[356598845,1742767847730,-418.2242758,0.00014338,2]
[356598846,1742767847741,-4688.60105325,0.00014341,2]
[356598847,1742767847751,-834.51197368,0.00014342,2]
[356598848,1742767847762,-160.0,0.00014342,2]
[356598849,1742767847774,-600.0,0.0001435,2]
[356598850,1742767847784,-600.0,0.00014498,2]
[356598851,1742767847795,-500.0,0.0001452,2]
[356598852,1742767847806,-500.0,0.0001452,2]
[356598853,1742767847817,-500.0,0.0001452,2]
[356598854,1742767847827,-500.0,0.0001452,2]
[356598855,1742767847838,-285.34075645,0.0001452,2]
[356598856,1742767847849,-500.0,0.0001452,2]
[356598857,1742767847859,-500.0,0.0001452,2]
[356598858,1742767847870,-500.0,0.0001452,2]
[356598859,1742767847880,-160.46510065,0.0001452,2]
[356598860,1742767847891,-500.0,0.0001452,2]
[356598861,1742767847902,-500.0,0.0001452,2]
[356598862,1742767847912,-500.0,0.0001452,2]
[356598863,1742767847923,-757.56,0.0001452,2]
[356598864,1742767847933,-500.0,0.0001452,2]
[356598865,1742767847944,-921.1,0.0001452,2]
[356598866,1742767847955,-500.0,0.0001452,2]
[356598867,1742767847967,-2345.38,0.0001452,2]
[356598868,1742767847979,-500.0,0.0001452,2]
[356598869,1742767847989,-500.0,0.0001452,2]
[356598870,1742767847999,-1182.93,0.0001452,2]
[356598871,1742767848011,-500.0,0.0001452,2]
[356598872,1742767848022,-500.0,0.0001452,2]
[356598873,1742767848033,-500.0,0.0001452,2]
[356598874,1742767848046,-500.0,0.0001452,2]
[356598875,1742767848057,-500.0,0.0001452,2]
[356598876,1742767848068,-580.56,0.0001452,2]
[356598877,1742767848078,-500.0,0.0001452,2]
[356598878,1742767848089,-500.0,0.0001452,2]
[356598879,1742767848100,-500.0,0.0001452,2]
[356598880,1742767848111,-500.0,0.0001452,2]
[356598881,1742767848122,-500.0,0.0001452,2]
[356598882,1742767848133,-500.0,0.0001452,2]
[356598883,1742767848143,-500.0,0.0001452,2]
[356598884,1742767848155,-589.75371992,0.0001452,2]
[356598885,1742767848165,-474.27498407,0.0001452,2]
[356598886,1742767848176,-500.0,0.0001452,2]
[356598887,1742767848186,-500.0,0.0001452,2]
[356598888,1742767848197,-500.0,0.0001452,2]
[356598889,1742767848208,-500.0,0.0001452,2]
[356598890,1742767848218,-500.0,0.0001452,2]
[356598891,1742767848229,-500.0,0.0001452,2]
[356598892,1742767848240,-500.0,0.0001452,2]
[356598893,1742767848251,-554.34,0.0001452,2]
[356598894,1742767848261,-583.47,0.0001452,2]
[356598895,1742767848272,-500.0,0.0001452,2]
[356598896,1742767848282,-500.0,0.0001452,2]
[356598897,1742767848293,-500.0,0.0001452,2]
[356598898,1742767848304,-500.0,0.0001452,2]
[356598899,1742767848314,-500.0,0.0001452,2]
[356598900,1742767848325,-500.0,0.0001452,2]
[356598901,1742767848335,-500.0,0.0001452,2]
[356598902,1742767848345,-2653.41,0.0001452,2]
[356598903,1742767848356,-8198.7,0.0001452,2]
[356598904,1742767848366,-1006.41,0.0001452,2]
[356598905,1742767848377,-2940.71,0.0001452,2]
[356598906,1742767848387,-500.0,0.0001452,2]
[356598907,1742767848398,-500.0,0.0001452,2]
[356598908,1742767848408,-500.0,0.0001452,2]
[356598909,1742767848419,-1183.27,0.0001452,2]
[356598910,1742767848430,-500.0,0.0001452,2]
[356598911,1742767848441,-500.0,0.0001452,2]
[356598912,1742767848452,-1109.55,0.0001452,2]
[356598913,1742767848463,-500.0,0.0001452,2]
[356598914,1742767848473,-10679.73,0.0001452,2]
[356598915,1742767848485,-500.0,0.0001452,2]
[356598916,1742767848496,-500.0,0.0001452,2]
[356598917,1742767848505,-616.77,0.0001452,2]
[356598918,1742767848515,-500.0,0.0001452,2]
[356598919,1742767848525,-92034.54777182,0.0001452,2]
[356598920,1742767848999,-14070.06222818,0.0001452,2]
[356598921,1742767849010,-500.0,0.0001452,2]
[356598922,1742767849020,-897.9,0.0001452,2]
[356598923,1742767849030,-500.0,0.0001452,2]
[356598924,1742767849040,-500.0,0.0001452,2]
[356598925,1742767849050,-4137.09,0.0001452,2]
[356598926,1742767849060,-500.0,0.0001452,2]
[356598927,1742767849071,-500.0,0.0001452,2]
[356598928,1742767849081,-500.0,0.0001452,2]
[356598929,1742767849091,-500.0,0.0001452,2]
[356598930,1742767849101,-1096.35,0.0001452,2]
[356598931,1742767849111,-2197.73,0.0001452,2]
[356598932,1742767849121,-773.45,0.0001452,2]
[356598933,1742767849131,-500.0,0.0001452,2]
[356598934,1742767849141,-500.0,0.0001452,2]
[356598935,1742767849150,-500.0,0.0001452,2]
[356598936,1742767849159,-500.0,0.0001452,2]
[356598937,1742767849168,-1351.32,0.0001452,2]
[356598938,1742767849177,-500.0,0.0001452,2]
[356598939,1742767849187,-500.0,0.0001452,2]
[356598940,1742767849197,-547.69742543,0.0001452,2]
[356598941,1742767849206,-500.0,0.0001452,2]
[356598942,1742767849216,-500.0,0.0001452,2]
[356598943,1742767849226,-7007.55,0.0001452,2]
[356598944,1742767849235,-500.0,0.0001452,2]
[356598945,1742767849244,-500.0,0.0001452,2]
[356598946,1742767849254,-532.4,0.0001452,2]
[356598947,1742767849263,-674.73,0.0001452,2]
[356598948,1742767849273,-4418.81,0.0001452,2]
[356598949,1742767849283,-500.0,0.0001452,2]
[356598950,1742767849293,-980.7,0.0001452,2]
[356598951,1742767849302,-500.0,0.0001452,2]
[356598952,1742767849312,-1674.18,0.0001452,2]
[356598953,1742767849321,-706.08,0.0001452,2]
[356598954,1742767849331,-500.0,0.0001452,2]
[356598955,1742767849340,-2938.51,0.0001452,2]
[356598956,1742767849350,-529.6,0.0001452,2]
[356598957,1742767849359,-626.22,0.0001452,2]
[356598958,1742767849369,-746.06,0.0001452,2]
[356598959,1742767849378,-869.25,0.0001452,2]
[356598960,1742767849388,-500.0,0.0001452,2]
[356598961,1742767849398,-500.0,0.0001452,2]
[356598962,1742767849407,-500.0,0.0001452,2]
[356598963,1742767849417,-500.0,0.0001452,2]
[356598964,1742767849426,-500.0,0.0001452,2]
[356598965,1742767849435,-500.0,0.0001452,2]
[356598966,1742767849444,-1187.84,0.0001452,2]
[356598967,1742767849453,-500.0,0.0001452,2]
[356598968,1742767849462,-1031.16,0.0001452,2]
[356598969,1742767849471,-590.6,0.0001452,2]
[356598970,1742767849480,-1508.01,0.0001452,2]
[356598971,1742767849490,-500.0,0.0001452,2]
[356598972,1742767849499,-1102.81,0.0001452,2]
[356598973,1742767849508,-271.9707602,0.0001452,2]
[356598974,1742767849517,-12880.19,0.0001452,2]
[356598975,1742767849526,-3320.68,0.0001452,2]
[356598976,1742767849535,-1858.37,0.0001452,2]
[356598977,1742767849544,-500.0,0.0001452,2]
[356598978,1742767849554,-1472.43,0.0001452,2]
[356598979,1742767849563,-750.09,0.0001452,2]
[356598980,1742767849573,-500.0,0.0001452,2]
[356598981,1742767849582,-3920.8,0.0001452,2]
[356598982,1742767849591,-500.0,0.0001452,2]
[356598983,1742767849600,-500.0,0.0001452,2]
[356598984,1742767849609,-4856.34,0.0001452,2]
[356598985,1742767849618,-500.0,0.00014573,2]
[356598986,1742767849628,-500.0,0.00014573,2]
[356598987,1742767849637,-476.65207308,0.00014573,2]
[356598988,1742767849646,-500.0,0.00014573,2]
[356598989,1742767849655,-500.0,0.00014573,2]
[356598990,1742767849664,-500.0,0.00014573,2]
[356598991,1742767849674,-500.0,0.00014573,2]
[356598992,1742767849683,-500.0,0.00014573,2]
[356598993,1742767849692,-500.0,0.00014573,2]
[356598994,1742767849702,-501.95434565,0.00014573,2]
[356598995,1742767849712,-500.0,0.00014573,2]
[356598996,1742767849721,-500.0,0.00014573,2]
[356598997,1742767849730,-500.0,0.00014573,2]
[356598998,1742767849739,-500.25703905,0.00014573,2]
[356598999,1742767849748,-528.88897697,0.00014573,2]
[356599000,1742767849758,-500.0,0.00014573,2]
[356599001,1742767849767,-600.0,0.00014646,2]
[356599002,1742767849777,-500.0,0.00014794,2]
[356599003,1742767849786,-500.0,0.00014794,2]
[356599004,1742767849795,-500.0,0.00014794,2]
[356599005,1742767849804,-500.0,0.00014794,2]
[356599006,1742767849814,-500.0,0.00014794,2]
[356599007,1742767849823,-500.0,0.00014794,2]
[356599008,1742767849833,-500.0,0.00014794,2]
[356599009,1742767849842,-500.0,0.00014794,2]
[356599010,1742767849851,-500.0,0.00014794,2]
[356599011,1742767849861,-757.56,0.00014794,2]
[356599012,1742767849870,-500.0,0.00014794,2]
[356599013,1742767849880,-921.1,0.00014794,2]
[356599014,1742767849889,-500.0,0.00014794,2]
[356599015,1742767849898,-2345.38,0.00014794,2]
[356599016,1742767849909,-500.0,0.00014794,2]
[356599017,1742767849918,-500.0,0.00014794,2]
[356599018,1742767849927,-1182.93,0.00014794,2]
[356599019,1742767849936,-500.0,0.00014794,2]
[356599020,1742767849946,-542.14044649,0.00014794,2]
[356599021,1742767849955,-500.0,0.00014794,2]
[356599022,1742767849966,-500.0,0.00014794,2]
[356599023,1742767849977,-500.0,0.00014794,2]
[356599024,1742767849987,-580.56,0.00014794,2]
[356599025,1742767849996,-323.69629418,0.00014794,2]
[356599026,1742767850007,-500.0,0.00014794,2]
[356599027,1742767850016,-500.0,0.00014794,2]
[356599028,1742767850026,-500.0,0.00014794,2]
[356599029,1742767850035,-500.0,0.00014794,2]
[356599030,1742767850046,-500.0,0.00014794,2]
[356599031,1742767850055,-500.0,0.00014794,2]
[356599032,1742767850065,-500.0,0.00014794,2]
[356599033,1742767850075,-500.0,0.00014794,2]
[356599034,1742767850084,-500.0,0.00014794,2]
[356599035,1742767850093,-500.0,0.00014794,2]
[356599036,1742767850103,-528.72859928,0.00014794,2]
[356599037,1742767850112,-500.0,0.00014794,2]
[356599038,1742767850122,-500.0,0.00014794,2]
[356599039,1742767850131,-554.34,0.00014794,2]
[356599040,1742767850140,-583.47,0.00014794,2]
[356599041,1742767850150,-500.0,0.00014794,2]
[356599042,1742767850159,-500.0,0.00014794,2]
[356599043,1742767850168,-500.0,0.00014794,2]
[356599044,1742767850178,-500.0,0.00014794,2]
[356599045,1742767850187,-500.0,0.00014794,2]
[356599046,1742767850197,-500.0,0.00014794,2]
[356599047,1742767850206,-500.0,0.00014794,2]
[356599048,1742767850216,-2653.41,0.00014794,2]
[356599049,1742767850226,-8198.7,0.00014794,2]
[356599050,1742767850237,-1006.41,0.00014794,2]
[356599051,1742767850246,-2940.71,0.00014794,2]
[356599052,1742767850255,-500.0,0.00014794,2]
[356599053,1742767850264,-500.0,0.00014794,2]
[356599054,1742767850274,-500.0,0.00014794,2]
[356599055,1742767850283,-1183.27,0.00014794,2]
[356599056,1742767850293,-500.0,0.00014794,2]
[356599057,1742767850303,-500.0,0.00014794,2]
[356599058,1742767850312,-1109.55,0.00014794,2]
[356599059,1742767850322,-500.0,0.00014794,2]
[356599060,1742767850332,-10679.73,0.00014794,2]
[356599061,1742767850341,-167.7194988,0.00014794,2]
[356599062,1742767850351,-500.0,0.00014794,2]
[356599063,1742767850360,-616.77,0.00014794,2]
[356599064,1742767850370,-500.0,0.00014794,2]
[356599065,1742767850379,-70244.50473155,0.00014794,2]
[356599066,1742767850393,-8130.35077147,0.00014794,2]
[356599067,1742767850627,-1108.01808303,0.00013872,2]
[356599068,1742767850637,-6211.58191697,0.00014375,2]
[356599077,1742768126793,757.92649185,0.00048542,30]
[356599078,1742768291707,-156.01943339,0.00013042,2]
[356599079,1742768470683,-208.30949799,0.00012698,2]
[356599104,1742768837128,-2048.3146588,0.00012696,2]
[356599105,1742768837149,-3267.91949291,0.00012698,2]
[356599106,1742768837170,-946.63139341,0.00013042,2]
[356599107,1742768837190,-300.0,0.00013597,2]
[356599108,1742768837210,-232.20071356,0.00013598,2]
[356599109,1742768837232,-1854.37219726,0.00013598,2]
[356599175,1742769041971,-0.00069384,0.00013598,2]
[356599183,1742769044512,-2050.23537925,0.00013598,2]
[356599184,1742769044529,-1512.47905815,0.00013598,2]
[356599185,1742769044539,-151.0,0.0001369,2]
[356599186,1742769044548,-1000.0,0.0001369,2]
[356599187,1742769044558,-600.0,0.0001369,2]
[356599188,1742769044567,-300.0,0.00013697,2]
[356599189,1742769044576,-500.0,0.00013698,2]
[356599190,1742769044585,-500.0,0.00013698,2]
[356599191,1742769044594,-502.44465376,0.00013698,2]
[356599192,1742769044604,-500.0,0.00013698,2]
[356599193,1742769044613,-500.0,0.00013698,2]
[356599194,1742769044622,-500.0,0.00013698,2]
[356599195,1742769044632,-642.75,0.00013698,2]
[356599196,1742769044645,-500.0,0.00013698,2]
[356599197,1742769044655,-500.0,0.00013698,2]
[356599198,1742769044665,-781.51,0.00013698,2]
[356599199,1742769044674,-500.0,0.00013698,2]
[356599200,1742769044685,-1978.3,0.00013698,2]
[356599201,1742769044694,-500.0,0.00013698,2]
[356599202,1742769044704,-500.0,0.00013698,2]
[356599203,1742769044713,-500.0,0.00013698,2]
[356599204,1742769044725,-936.48,0.00013698,2]
[356599205,1742769044735,-500.0,0.00013698,2]
[356599206,1742769044744,-500.0,0.00013698,2]
[356599207,1742769044753,-500.0,0.00013698,2]
[356599208,1742769044763,-500.0,0.00013698,2]
[356599209,1742769044773,-500.0,0.00013698,2]
[356599210,1742769044782,-500.0,0.00013698,2]
[356599211,1742769044792,-500.0,0.00013698,2]
[356599212,1742769044801,-500.0,0.00013698,2]
[356599213,1742769044811,-500.0,0.00013698,2]
[356599214,1742769044820,-500.0,0.00013698,2]
[356599215,1742769044830,-500.0,0.00013698,2]
[356599216,1742769044839,-500.0,0.00013698,2]
[356599217,1742769044849,-500.0,0.00013698,2]
[356599218,1742769044858,-500.0,0.00013698,2]
[356599219,1742769044868,-500.0,0.00013698,2]
[356599220,1742769044878,-500.0,0.00013698,2]
[356599221,1742769044887,-500.0,0.00013698,2]
[356599222,1742769044897,-500.0,0.00013698,2]
[356599223,1742769044907,-500.0,0.00013698,2]
[356599224,1742769044917,-500.0,0.00013698,2]
[356599225,1742769044927,-314.53209955,0.00013698,2]
[356599226,1742769044936,-500.0,0.00013698,2]
[356599227,1742769044946,-500.0,0.00013698,2]
[356599228,1742769044955,-500.0,0.00013698,2]
[356599229,1742769044964,-500.0,0.00013698,2]
[356599230,1742769044974,-500.0,0.00013698,2]
[356599231,1742769044983,-500.0,0.00013698,2]
[356599232,1742769044992,-500.0,0.00013698,2]
[356599233,1742769045001,-500.0,0.00013698,2]
[356599234,1742769045011,-500.0,0.00013698,2]
[356599235,1742769045021,-500.0,0.00013698,2]
[356599236,1742769045031,-500.0,0.00013698,2]
[356599237,1742769045041,-500.0,0.00013698,2]
[356599238,1742769045051,-500.0,0.00013698,2]
[356599239,1742769045061,-500.0,0.00013698,2]
[356599240,1742769045070,-919.01,0.00013698,2]
[356599241,1742769045080,-1548.64,0.00013698,2]
[356599242,1742769045089,-500.0,0.00013698,2]
[356599243,1742769045099,-4046.95,0.00013698,2]
[356599244,1742769045109,-500.0,0.00013698,2]
[356599245,1742769045119,-2328.07,0.00013698,2]
[356599246,1742769045129,-500.0,0.00013698,2]
[356599247,1742769045139,-500.0,0.00013698,2]
[356599248,1742769045148,-500.0,0.00013698,2]
[356599249,1742769045158,-878.39,0.00013698,2]
[356599250,1742769045169,-500.0,0.00013698,2]
[356599251,1742769045179,-1617.05,0.00013698,2]
[356599252,1742769045189,-500.0,0.00013698,2]
[356599253,1742769045198,-2100.62,0.00013698,2]
[356599254,1742769045208,-500.0,0.00013698,2]
[356599255,1742769045218,-500.0,0.00013698,2]
[356599256,1742769045229,-85154.89,0.00013698,2]
[356599257,1742769045240,-796.74,0.00013698,2]